Cogmind - Beta 13 @@@ ROGUE MODE // 2024.04.22 @ 09:24:25 Player: ThatBishHoly Result: Destroyed by H-66 Slayer with Heavy Assault Rifle Performance ------------- Evolutions (4) 2000 Regions Visited (8) 1600 Robots Destroyed (23) 115 Value Destroyed (873) 873 Prototype IDs (7) 140 Alien Tech Used (0) 0 Bonus (1015) 1015 TOTAL SCORE: 5743 Bonus ------- Follower Combat Kills 515 Entered DSFs 500 Cogmind --------- Core Integrity 0/850 Matter 164/300 Energy 370/370 System Corruption 12% Temperature Cool (0) Movement Core (1250) Ox24 Location -6/Factory Parts ------- > --- POWER (3) -------- Cooled Deuterium Engine Light Fission Core > --- PROPULSION (4) --- (None) > --- UTILITY (4) ------ Coolant Injector High-capacity Storage Unit Enhanced Optical Array Focal Shield > --- WEAPON (4) ------- Gauss Rifle Heavy Machine Gun Mini Assault Cannon > --- INVENTORY (20) --- Improved Sensor Array Advanced Sensor Array Heavy Laser High-powered Field Laser Gauss Rifle Peak State ------------ > --- POWER ------------ Cooled Deuterium Engine Light Fission Core Antimatter Reactor > --- PROPULSION ------- Heavy Treads Armored Huge Wheel > --- UTILITY ---------- Coolant Injector High-capacity Storage Unit Enhanced Optical Array Focal Shield > --- WEAPON ----------- High-powered Field Laser Force Rifle Heavy Machine Gun Mini Assault Cannon > --- INVENTORY -------- Advanced Sensor Array Heavy Laser Gauss Rifle Gauss Rifle [Rating: 74] Favorites ----------- Power Cooled Deuterium Engine Engine Cooled Deuterium Engine Power Core Light Nuclear Core Reactor Antimatter Reactor Propulsion Armored Huge Wheel Treads Light Treads Leg Aluminum Leg Wheel Armored Huge Wheel Hover Unit Airjet Flight Unit Improved VTOL Module Utility System Shield Device Recalibrator Storage High-capacity Storage Unit Processor Enhanced Optical Array Hackware System Shield Protection Improved Propulsion Shielding Weapon High-powered Field Laser Energy Gun High-powered Field Laser Ballistic Gun Heavy Machine Gun Ballistic Cannon Mini Assault Cannon Launcher Improved Grenade Launcher Special Melee Weapon Improved Datajack Build | -11 -10 -9 -8 -7 -7 -7 -7 -6 ------- Run | Yrd Mat Mat Mat Fac Was Fac DSF Fac Slots Evolved 8 | . . 2 2 2 . . . 2 Power 2 | . . 1 . . . . . 1 Propulsion 2 | . . . 2 . . . . . Utility 2 | . . . . 1 . . . 1 Weapon 2 | . . 1 . 1 . . . . Parts Attached 89 | 6 1 21 4 20 6 . 3 28 Power 19 | 1 . 4 . 2 2 . . 10 Engine 11 | 1 . 2 . 2 . . . 6 Core 5 | . . 2 . . . . . 3 Reactor 3 | . . . . . 2 . . 1 Propulsion 23 | 2 . 6 3 5 2 . 3 2 Treads 6 | 2 . . . 1 2 . . 1 Leg 3 | . . 3 . . . . . . Wheel 5 | . . . 1 . . . 3 1 Hover 6 | . . 2 . 4 . . . . Flight 3 | . . 1 2 . . . . . Utility 20 | 1 1 4 1 4 . . . 9 Device 10 | . . . . 3 . . . 7 Storage 3 | 1 1 . . . . . . 1 Processor 1 | . . . . . . . . 1 Hackware 2 | . . 2 . . . . . . Protection 4 | . . 2 1 1 . . . . Artifact . | . . . . . . . . . Weapon 27 | 2 . 7 . 9 2 . . 7 Energy Gun 15 | 2 . 2 . 7 1 . . 3 Energy Cannon . | . . . . . . . . . Ballistic Gun 3 | . . 1 . . . . . 2 Ballistic Cannon 2 | . . . . . . . . 2 Launcher 5 | . . 4 . . 1 . . . Special Weapon . | . . . . . . . . . Impact Weapon . | . . . . . . . . . Slashing Weapon . | . . . . . . . . . Piercing Weapon . | . . . . . . . . . Special Melee Weapon 2 | . . . . 2 . . . . Unidentified Prototypes 7 | . . 2 . 1 1 . . 3 Parts Lost 22 | . 2 6 . . . . . 14 Power 6 | . . 1 . . . . . 5 Propulsion 6 | . 1 2 . . . . . 3 Utility 3 | . . . . . . . . 3 Weapon 7 | . 1 3 . . . . . 3 Highest Loss Streak 3 | . 2 3 . . . . . 3 To Critical Strikes 1 | . . . . . . . . 1 Average Slot Usage (%) 79 | . 78 66 83 93 87 84 84 78 Engine 7 | . 14 8 . 3 7 . . 10 Core 4 | . . 1 18 11 . . . 1 Reactor 3 | . . . . . 6 15 15 4 Treads 5 | . 25 . . . 11 15 7 2 Leg 3 | . . 11 9 2 . . . . Wheel 4 | . . . 8 2 . . 7 9 Hover 2 | . . . . 17 6 . . . Device 9 | . . . . 9 23 23 23 16 Storage 3 | . 14 1 . . . . . 4 Hackware 2 | . . 1 17 4 . . . . Protection 3 | . . 16 . 5 . . . . Energy Gun 19 | . 24 10 9 21 29 30 30 20 Ballistic Gun 1 | . . 2 . . . . . 1 Launcher 5 | . . 12 18 7 . . . . Naked Turns 1 | . . 1 . . . . . . Heaviest Build 99 | 14 19 29 29 42 54 54 54 99 Greatest Support 145 | 40 40 20 12 32 145 145 145 56 Greatest Overweight (x) 8 | . 5 3 8 4 1 . . 3 Average Overweight (x) 1 | . . 1 3 1 . . . 1 Largest Inventory Capacity 20 | 8 10 10 5 5 5 5 5 20 Average Capacity 9 | 7 9 5 5 5 5 5 5 16 Most Carried 9 | 5 4 5 5 5 5 5 5 9 Average Carried 3 | 1 2 2 4 4 3 5 2 4 Final Capacity 20 | 8 10 5 5 5 5 5 5 20 Final Carried 5 | 2 3 5 5 2 5 5 2 5 Class Distribution -------------------- 48% | Tank 20% | Mutant 12% | Bomber 6% | Hacker-Bomber 4% | Hacker-Gunner 4% | Scavenger-Tank Dominant Class ---------------- Mutant | -10/Materials Tank | -9/Materials Hacker-Bomber | -8/Materials Bomber | -7/Factory Tank | -7/Waste Tank | -7/Factory Tank | -7/DSF Tank | -6/Factory Resources | -11 -10 -9 -8 -7 -7 -7 -7 -6 ----------- Run | Yrd Mat Mat Mat Fac Was Fac DSF Fac Matter Collected 1092 | 208 . 184 . 157 191 . 30 322 Remotely 408 | . . . . 157 191 . 30 30 Salvage Created 770 | . 48 137 59 . . . 34 492 Parts 39 | . . 11 4 . . . . 24 Haulers Intercepted . | . . . . . . . . . Recyclers Shooed . | . . . . . . . . . Parts Field Recycled . | . . . . . . . . . Retrieved Matter . | . . . . . . . . . Parts Self-Destructed . | . . . . . . . . . Prevented . | . . . . . . . . . Kills | -11 -10 -9 -8 -7 -7 -7 -7 -6 ------- Run | Yrd Mat Mat Mat Fac Was Fac DSF Fac Combat Hostiles Destroyed 20 | . 1 7 1 . . . 1 10 Guns 14 | . 1 2 . . . . 1 10 AOE 6 | . . 5 1 . . . . . Classes Destroyed 8 | . 1 3 . . . . . 4 Builder 2 | . . 1 1 . . . . . Operator 1 | . . . . . . . . 1 Swarmer 6 | . . 3 . . . . . 3 Grunt 6 | . 1 2 . . . . 1 2 Brawler 1 | . . . . . . . . 1 Sentry 3 | . . 2 1 . . . . . Hunter 1 | . . . . . . . . 1 Programmer 3 | . . . . . . . . 3 Best Kill Streak 8 | . 1 8 2 . . . 1 3 Combat Bots Only 4 | . 1 4 1 . . . 1 3 Max Kills in Single Turn 3 | . 1 3 2 . . . 1 1 Gunslinging . | . . . . . . . . . Exploded 3 | . . 3 1 . . . . . Melee . | . . . . . . . . . Uniques/NPCs Destroyed . | . . . . . . . . . Combat | -11 -10 -9 -8 -7 -7 -7 -7 -6 -------- Run | Yrd Mat Mat Mat Fac Was Fac DSF Fac Hostile Shots Fired 310 | . 35 106 . . . . 3 166 Missed 83 | . 4 33 . . . . 1 45 Damage Taken 3652 | . 432 883 1 . . . 50 2286 Core 1212 | . 35 317 . . . . . 860 Absorbed by Shields 231 | . . . . . . . 19 212 Redirected to Shielding 9 | . . 9 . . . . . . Ignored by Resistances 80 | . . . . . . . . 80 Regen/Repaired (Parts) 172 | . . . . . 172 . . . Core Remaining (%) 81 | 100 86 20 100 . . . 100 . Volleys Fired 60 | . 11 8 1 . . . 4 36 Largest 4 | . 2 2 3 . . . 4 4 Hottest 300 | . 100 79 117 . . . 289 300 Shots Fired 147 | . 22 13 3 . . . 16 93 Gun 137 | . 22 5 1 . . . 16 93 Cannon . | . . . . . . . . . Launcher 10 | . . 8 2 . . . . . Special . | . . . . . . . . . Kinetic 2 | . . 2 . . . . . . Thermal 134 | . 22 3 . . . . 16 93 Explosive 10 | . . 8 2 . . . . . Electromagnetic 1 | . . . 1 . . . . . Robot Hit Streak 7 | . 4 7 . . . . 3 7 Robot Miss Streak 10 | . 2 1 . . . . 3 10 Penetration Max . | . . . . . . . . . Secondary Targets 2 | . . . . . . . 1 1 Max Gunslinging Chain 1 | . . . . . . . 1 1 Shots Hit Robots 75 | . 14 5 . 1 . . 10 45 Core Hits 48 | . 6 12 3 . . . 3 24 Critical Kills . | . . . . . . . . . Critical Parts Destroyed 1 | . . . . . . . . 1 Critical Strikes 7 | . 2 1 . . . . 3 1 Burn 6 | . 2 1 . . . . 3 . Destroy 1 | . . . . . . . . 1 Melee Attacks 1 | . . . . 1 . . . . Impact . | . . . . . . . . . Slashing . | . . . . . . . . . Piercing . | . . . . . . . . . Sneak Attacks . | . . . . . . . . . Combat Hostiles . | . . . . . . . . . Follow-up Attacks . | . . . . . . . . . Damage Inflicted 2328 | 9 187 503 116 . . . 253 1260 Guns 1628 | . 175 64 . . . . 253 1136 Cannons . | . . . . . . . . . Explosions 532 | . . 418 114 . . . . . Melee . | . . . . . . . . . Ramming 168 | 9 12 21 2 . . . . 124 Kinetic 35 | . . 35 . . . . . . Thermal 1593 | . 175 29 . . . . 253 1136 Explosive 497 | . . 418 79 . . . . . Electromagnetic 35 | . . . 35 . . . . . Impact . | . . . . . . . . . Slashing . | . . . . . . . . . Piercing . | . . . . . . . . . Highest Corruption 12 | . 1 . . . . . . 12 Average Corruption 4 | . 1 . . . . . . 5 Corruption Purged . | . . . . . . . . . Corruption Blocked . | . . . . . . . . . Effects 22 | . 2 . . . . . . 20 Message Errors 4 | . 1 . . . . . . 3 Matter Fused 5 | . 1 . . . . . . 4 Heat Flow Errors 2 | . . . . . . . . 2 Energy Discharges 4 | . . . . . . . . 4 Data Loss (minor) 6 | . . . . . . . . 6 Data Loss (major) 1 | . . . . . . . . 1 Overload Shots . | . . . . . . . . . Overflow Damage 71 | . . 71 . . . . . . Projectiles . | . . . . . . . . . Explosions 71 | . . 71 . . . . . . Melee . | . . . . . . . . . Knockbacks . | . . . . . . . . . Impact . | . . . . . . . . . Kinetic . | . . . . . . . . . Secondary . | . . . . . . . . . Self-Inflicted Damage 215 | . . 90 1 . . . . 124 Shots 2 | . . 2 . . . . . . Rammed 21 | 5 15 . 1 . . . . . Targets Rammed 27 | 5 15 6 1 . . . . . Kicked 6 | . . 6 . . . . . . Crushed . | . . . . . . . . . Highest Temperature 936 | . 477 17 66 . . . 666 936 Average Temperature 302 | . 211 5 38 . . . 222 370 Received Heat Transfer 656 | . 291 219 . . . . 12 134 Effects 101 | . 4 . . . . . 12 85 Shutdowns 29 | . . . . . . . 2 27 Energy Bleed 7 | . . . . . . . 2 5 Interference 17 | . 2 . . . . . 4 11 Matter Decay 6 | . . . . . . . . 6 Short Circuit 8 | . 2 . . . . . 1 5 Damage (minor) 14 | . . . . . . . 3 11 Damage (major) 15 | . . . . . . . . 15 Damage (core) 5 | . . . . . . . . 5 Siege Activations . | . . . . . . . . . Robots Corrupted . | . . . . . . . . . Combat Hostiles . | . . . . . . . . . Parts Fried . | . . . . . . . . . Impact Corruptions . | . . . . . . . . . Robots Melted . | . . . . . . . . . Combat Hostiles . | . . . . . . . . . Parts Melted 12 | . 3 . . . . . . 9 Heat Transferred 3388 | . 666 148 . . . . 706 1868 Parts Sabotaged . | . . . . . . . . . Parts Stolen . | . . . . . . . . . Parts Stripped . | . . . . . . . . . Power Chain Reactions . | . . . . . . . . . Alert | -11 -10 -9 -8 -7 -7 -7 -7 -6 ------- Run | Yrd Mat Mat Mat Fac Was Fac DSF Fac Peak Influence 484 | . 50 204 155 176 5 8 484 344 Initial 254 | . . 12 7 70 5 3 5 254 Average 110 | . 18 69 19 107 5 4 336 177 Maximum Alert Level 2 | . . 1 . . . . 2 1 Low Security (%) 75 | 100 100 75 100 100 100 100 11 57 Level 1 21 | . . 24 . . . . 41 42 Level 2 3 | . . . . . . . 47 . Level 3 . | . . . . . . . . . Level 4 . | . . . . . . . . . Level 5 . | . . . . . . . . . High Security . | . . . . . . . . . Max Security . | . . . . . . . . . Sterilizations 1 | . . . . . . . 1 . Squads Dispatched 9 | . 1 1 . 1 . . 1 5 Investigation 2 | . . . . 1 . . . 1 Extermination 3 | . . . . . . . . 3 Reinforcement 4 | . 1 1 . . . . 1 1 Assault . | . . . . . . . . . Garrison . | . . . . . . . . . Intercept . | . . . . . . . . . Searches Triggered . | . . . . . . . . . Construction Impeded 1 | . . . . . . . . 1 Haulers Reinforced . | . . . . . . . . . Active Scanning Responses . | . . . . . . . . . Cargo Convoy Interrupts . | . . . . . . . . . Stealth | -11 -10 -9 -8 -7 -7 -7 -7 -6 --------- Run | Yrd Mat Mat Mat Fac Was Fac DSF Fac Distress Signals 1 | . . . 1 . . . . . Communications Jammed . | . . . . . . . . . Distress Signals . | . . . . . . . . . Times Spotted 49 | . 6 9 4 4 . . 10 16 Peak Tracking Total 7 | . 3 7 2 1 . . 4 3 Tactical Retreats 3 | . 1 1 . . . . . 1 Traps | -11 -10 -9 -8 -7 -7 -7 -7 -6 ------- Run | Yrd Mat Mat Mat Fac Was Fac DSF Fac Traps Triggered 5 | . 1 . . 2 . . . 2 Indirectly . | . . . . . . . . . Trap Hack Attempts . | . . . . . . . . . Triggered . | . . . . . . . . . Disarmed . | . . . . . . . . . Reprogrammed . | . . . . . . . . . Reused . | . . . . . . . . . Traps Extracted . | . . . . . . . . . Installed . | . . . . . . . . . Triggered . | . . . . . . . . . Machines | -11 -10 -9 -8 -7 -7 -7 -7 -6 ---------- Run | Yrd Mat Mat Mat Fac Was Fac DSF Fac Machines Disabled 5 | . . . 3 . . . 2 . Max in Single Turn 1 | . . . 1 . . . . . Machines Repaired . | . . . . . . . . . Machines Dismantled . | . . . . . . . . . Machines Sabotaged . | . . . . . . . . . Overloaded Fab Kills . | . . . . . . . . . Hacking | -11 -10 -9 -8 -7 -7 -7 -7 -6 --------- Run | Yrd Mat Mat Mat Fac Was Fac DSF Fac Machines Accessed 10 | . . 1 1 3 . 2 . 3 Terminals 4 | . . 1 . . . 1 . 2 Fabricators 2 | . . . . 2 . . . . Repair Stations 1 | . . . . . . . . 1 Recycling Units 3 | . . . 1 1 . 1 . . Scanalyzers . | . . . . . . . . . Garrison Access . | . . . . . . . . . Total Hacks 16 | . . 2 3 4 . 2 . 5 Successful 11 | . . 1 3 3 . 2 . 2 Failed 5 | . . 1 . 1 . . . 3 Catastrophic 2 | . . 1 . 1 . . . . Database Lockouts . | . . . . . . . . . Manual . | . . . . . . . . . Terminals 5 | . . 2 . . . 1 . 2 Fabricators 2 | . . . . 2 . . . . Repair Stations 3 | . . . . . . . . 3 Recycling Units 6 | . . . 3 2 . 1 . . Scanalyzers . | . . . . . . . . . Garrison Access . | . . . . . . . . . Terminal Hacks 3 | . . 1 . . . 1 . 1 Open DSF 1 | . . . . . . 1 . . Zone Layout 2 | . . 1 . . . . . 1 Fabricator Hacks 2 | . . . . 2 . . . . Build 2 | . . . . 2 . . . . Repair Station Hacks 1 | . . . . . . . . 1 Scan Component 1 | . . . . . . . . 1 Recycling Unit Hacks 5 | . . . 3 1 . 1 . . Process 1 | . . . 1 . . . . . Report Inventory 3 | . . . 1 1 . 1 . . Retrieve Matter 1 | . . . 1 . . . . . Scanalyzer . | . . . . . . . . . Garrison Access Hacks . | . . . . . . . . . Unauthorized Hacks . | . . . . . . . . . Terminals . | . . . . . . . . . Fabricators . | . . . . . . . . . Repair Stations . | . . . . . . . . . Recycling Units . | . . . . . . . . . Scanalyzers . | . . . . . . . . . Garrison Access . | . . . . . . . . . Data Cores Recovered 1 | . . . . . . . . 1 Used . | . . . . . . . . . Hacking Detections 5 | . . 1 1 1 . . . 2 Full Trace Events 2 | . . . . 1 . . . 1 Feedback Events . | . . . . . . . . . Feedback Blocked . | . . . . . . . . . Robot Schematics Acquired . | . . . . . . . . . Robots Built 2 | . . . . 2 . . . . Authchips . | . . . . . . . . . Time 49 | . . . . 49 . . . . Total Robot Build Rating 4 | . . . . 4 . . . . Part Schematics Acquired . | . . . . . . . . . Parts Built 2 | . . . . 2 . . . . Authchips . | . . . . . . . . . Time 84 | . . . . 84 . . . . Total Part Build Rating 8 | . . . . 8 . . . . Parts Repaired . | . . . . . . . . . Time . | . . . . . . . . . Parts Recycled . | . . . . . . . . . Recycled Matter 69 | . . . 69 . . . . . Retrieved Matter 69 | . . . 69 . . . . . Retrieved Components . | . . . . . . . . . Parts Scanalyzed . | . . . . . . . . . Part Schematics Acquired . | . . . . . . . . . Parts Damaged . | . . . . . . . . . Bothacking | -11 -10 -9 -8 -7 -7 -7 -7 -6 ------------ Run | Yrd Mat Mat Mat Fac Was Fac DSF Fac Used RIF Installer . | . . . . . . . . . Robots Hacked 1 | . . . . 1 . . . . Non-combat 1 | . . . . 1 . . . . Combat . | . . . . . . . . . Robot Hacks Applied 1 | . . . . 1 . . . . parse_system 1 | . . . . 1 . . . . Relay Couplers Released . | . . . . . . . . . Fabnet Peak Effective % . | . . . . . . . . . Robots Rewired . | . . . . . . . . . Allies Hacked . | . . . . . . . . . Hacks Repelled . | . . . . . . . . . Allies | -11 -10 -9 -8 -7 -7 -7 -7 -6 -------- Run | Yrd Mat Mat Mat Fac Was Fac DSF Fac Total Allies 22 | . . . . 2 20 . . . Largest Group 22 | . . . . 2 22 22 20 . Highest-Rated Group 531 | . . . . 30 531 531 485 . Highest-Rated Ally 35 | . . . . 15 35 35 35 . Total Orders . | . . . . . . . . . Ally Attacks 95 | . . . . 9 . . 86 . Total Damage 1938 | . . . . 181 . . 1757 . Kills 20 | . . . . 3 . . 17 . Allies Corrupted . | . . . . . . . . . Allies Melted . | . . . . . . . . . Intel | -11 -10 -9 -8 -7 -7 -7 -7 -6 ------- Run | Yrd Mat Mat Mat Fac Was Fac DSF Fac Robot Analysis Total . | . . . . . . . . . Derelict Logs Recovered . | . . . . . . . . . Drone Launches . | . . . . . . . . . Drone Recoveries . | . . . . . . . . . Exploration | -11 -10 -9 -8 -7 -7 -7 -7 -6 ------------- Run | Yrd Mat Mat Mat Fac Was Fac DSF Fac Turns Passed 4440 | 110 521 793 462 496 265 44 330 1419 Spaces Moved 2467 | 68 255 380 227 278 168 28 238 825 Core 108 | 19 25 21 43 . . . . . Treads 520 | 49 230 . . 3 120 28 90 . Legs 341 | . . 323 18 . . . . . Wheels 1226 | . . . 166 87 . . 148 825 Hover 272 | . . 36 . 188 48 . . . Flight . | . . . . . . . . . Fastest Speed 48 | 50 160 60 120 48 108 160 100 100 Average Speed 145 | 129 173 184 193 108 145 160 122 126 Slowest Speed 450 | 160 300 260 450 320 160 160 160 145 Overloaded Moves . | . . . . . . . . . Propulsion Burnouts . | . . . . . . . . . Robots Hopped . | . . . . . . . . . Cave-ins Triggered . | . . . . . . . . . Exploration Rate (%) 33 | 6 30 29 27 8 80 1 95 23 Regions Visited 8 Branch Regions . Pre-discovered Areas . | . . . . . . . . . Known Exits Taken 1 | . . . . . . 1 . . Unknown Exits Taken 4 | 1 1 1 1 . . . . . Scrap Searched . | . . . . . . . . . Spaces Dug . | . . . . . . . . . Terrain Destroyed 111 | . . 65 44 . . . . 2 Melee . | . . . . . . . . . Projectile . | . . . . . . . . . AOE 109 | . . 65 44 . . . . . Terrain Rammed 6 | . . . . . . . . 6 Walls Destroyed 2 | . . . . . . . . 2 Machines Disabled . | . . . . . . . . . Actions | -11 -10 -9 -8 -7 -7 -7 -7 -6 --------- Run | Yrd Mat Mat Mat Fac Was Fac DSF Fac Total 3147 | 87 286 462 247 478 192 27 268 1100 Wait 317 | 1 . 11 9 133 . . 11 152 Move 2460 | 67 254 379 226 278 167 27 237 825 Hop . | . . . . . . . . . Pick Up 89 | 8 3 24 2 14 8 . 5 25 Fast Attach 9 | . . . 4 3 . . 1 1 Attach 48 | 6 . 14 . 9 2 . 2 15 Detach 4 | . . 1 . 2 . . . 1 Swap 32 | . 1 7 . 8 4 . . 12 Drop 63 | . 2 12 4 17 10 . 7 11 Fire 60 | . 11 8 1 . . . 4 36 Melee 1 | . . . . 1 . . . . Ram 20 | . 13 . 1 . . . . 6 Kick 6 | . . 6 . . . . . . Crush 7 | 5 2 . . . . . . . Escape Stasis 29 | . . . . 13 . . . 16 Rewire 2 | . . . . . 1 . 1 . Trap . | . . . . . . . . . Miscellaneous . | . . . . . . . . . Route ------- -11/Scrapyard -10/Materials -9/Materials -8/Materials -7/Factory -7/Waste -7/Factory -7/DSF -6/Factory History --------- Turn | Location | Event 10 | -11/Scrapyard | Discovered new exit (range 15) 111 | -11/Scrapyard | Entered Materials 302 | -10/Materials | Build established: Mutant 614 | -10/Materials | Discovered new exit (range 5) 632 | -10/Materials | Entered another Materials area 632 | -9/Materials | Evolved 2 slots: Power x1, Weapon x1 793 | -9/Materials | Lost 3 parts (1p1n1w) 817 | -9/Materials | Core integrity fell below 50% 847 | -9/Materials | Lost 3 parts (1n2w) 1311 | -9/Materials | Build established: Tank 1342 | -9/Materials | Discovered new exit (range 14) 1425 | -9/Materials | Entered another Materials area 1425 | -8/Materials | Evolved 2 slots: Propulsion x2 1861 | -8/Materials | Discovered new exit (range 14) 1863 | -8/Materials | Build established: Hacker-Bomber 1887 | -8/Materials | Entered Factory 1887 | -7/Factory | Evolved 2 slots: Utility x1, Weapon x1 2025 | -7/Factory | Fabricated Y-45 Defender (x2) 2173 | -7/Factory | Build established: Bomber 2270 | -7/Factory | Fabricated Imp. Deuterium Engine (x2) 2383 | -7/Factory | Sucked down chute 2383 | -7/Factory | Entered Waste 2384 | -7/Waste | Joined by Warlord forces that had cleared the area 2388 | -7/Waste | Found Prototype Launcher 2389 | -7/Waste | Identified Rocket Array 2403 | -7/Waste | 2 allies followed down the chute 2611 | -7/Waste | Discovered new exit (range 10) 2644 | -7/Waste | Found Damper Plating 2648 | -7/Waste | Entered Factory 2648 | -7/Factory | Accompanied by 22 allies 2677 | -7/Factory | Identified exit to DSF 2692 | -7/Factory | Entered DSF 2692 | -7/DSF | Accompanied by 21 allies 2721 | -7/DSF | Discovered new exit (range 14) 2725 | -7/DSF | Additional patrols routed to DSF 2751 | -7/DSF | Build established: Tank 2758 | -7/DSF | Lost 3 allies 2908 | -7/DSF | Lost 5 allies 2918 | -7/DSF | Sterilization system engaged 2938 | -7/DSF | Ambient heat levels rising (+10) 2953 | -7/DSF | Ambient heat levels rising (+10) 2968 | -7/DSF | Ambient heat levels rising (+10) 2983 | -7/DSF | Ambient heat levels rising (+10) 2998 | -7/DSF | Ambient heat levels rising (+10) 3013 | -7/DSF | Ambient heat levels rising (+10) 3022 | -7/DSF | Entered Factory 3022 | -6/Factory | Evolved 2 slots: Power x1, Utility x1 3621 | -6/Factory | Core integrity fell below 50% 3789 | -6/Factory | Core integrity fell below 20% 4413 | -6/Factory | System corruption reached 10% 4441 | -6/Factory | Destroyed by H-66 Slayer with Heavy Assault Rifle Last Messages --------------- data lost. 04419_ Slug penetrates Wall. 04423_ Penetrated by Slug. 04427_ Broken Arm. Huge Wheel destroyed. 04427_ Penetrated by Slug. 04428_ U-05 Engineer destroyed. 04429_ Slammed into Wall. 04429_ Coolant Injector broken. 04429_ Destabilizing: Short circuit. 04429_ Destabilizing: Core damaged (-25). 04431_ Penetrated by Slug. 04431_ Slug penetrates Wall. 04438_ Penetrated by Slug. 04438_ Hvy. Treads destroyed. 04440_ P-60 Hacker resets H-66 Slayer, system corruption cleaned. 04441_ Penetrated by Slug. 04441_ Critical hit (Destroy). 04441_ Antimatter Reactor destroyed. [Achievement: Just Browsing] Map ----- +----------------------------------------------------+ | # # | | ########## # | | ?????????# ! # ######### | | ?????????# !! # #???????? | | ?????????# # ############### ##???????? | | ?????????# # #?????????????# #????????? | | ?????????# # #?????????????# #????????? | | ?????????#/###### #?????????????# #????????? | | ?????????# #????# #?????????????# #????????? | | ?????????# #????# #?????????????# #????????? | | ?????????# #????# #?????????????# #????????? | | ?????????# #????# #?????????????T #????????? | | ?????????# #????# +?????????????"""""????????? | | ########## #????# #??????????????????????????? | | # #????# +??????????????????????????? | | # #????# #??????????????????????????? | | """ """ # ###### #??????????????????????????? | | """ """ # +??????????????????????????? | | """ """ # #??????????????????????????? | | + #??????????????????????????? | | """ # #??????????????????????????? | | """ # #??????????????????????????? | | """ # ####+######???????????????????????? | | # # ph ###?????????????????????? | | # # !u# #?????????????????????? | | # # %u@#??????????????????????? | | ########## # """" # ?????????????????????? | | ?????????# + """" # "" ???????????????????? | | ?????????# # """" #?""" ?????????????????? | | ?????????# # """" #?"R ???????????????? | | ########## # !#??"" [?????????????? | | ###########??" ???????????? | | ## #??? """""" #??????????? | | """ """ """ ## [ ** #??? """""? #??????????? | | """ """ """ ## ** * #????""?????????????????? | | """ """ """ ## * #???????????????????????? | | ## #???????????????????????? | | """ """ """ ## #???????????????????????? | | """ """ """ #######+####+##################???? | | """ """ """ #???? | | #???? | | #???? | | % ############+############## #???? | | ############+#########??? ????# # #???? | | ???# #? ??#"" + #???? | | ???# # #"" # #???? | | ???# # #"" " # #???? | | ???# """"""" """"""" # #T " # #???? | | ???# """"""" """"""" # #"" " # #???? | | ???# """"""" """"""" # #"" " # +???? | +----------------------------------------------------+ Best States ------------- Heat Dissipation 37 Coolant Potential 65 Energy Generation 47 Energy Capacity 745 Matter Stores 300 Matter Capacity 300 Sight Range 22 Terrain Scan Density 10 Armor Coverage 150 Resistance: KI 20 Resistance: TH 10 Propulsion Shielding 66 Evasion (%) 55 Recoil Reduction 4 Energy Filtering 45 Defensive Hacking 20 Authchip Count 1 Item Schematics ----------------- None Robot Schematics ------------------ None Fabricated ------------ Y-45 Defender | x2 | -7/Factory | Preloaded Imp. Deuterium Engine | x2 | -7/Factory | Preloaded Alien Tech Used ----------------- None Achievements -------------- Just Browsing My Command Is Your Wish We Are Legion Challenges ------------ None Game ------ Seed AssembledDeuteriumDiverter Manual? 0 Play Time 00:44:20 Cumulative 13.4 hours Start 2024.04.22 @ 02:35:12 End 2024.04.22 @ 09:24:25 Sessions 3 Manual Loads 0 Difficulty Rogue Special Mode None Game No. 39 Rogue 39 Adventurer 0 Explorer 0 Win Type - Total 0 Types 0/0/0/0/0/0/0/0/0 Lore% 12 Gallery% 25 Achievement% 21 Wizard Run 0 Options --------- Layout 1 ASCII 0 Keyboard 0 Movement Mouse Keybinds 0 Fullscreen 1 Font 16/SmallcapsGlow Map View 50x40 Zoom Use 26% Tactical HUD 1 Map Filters NONE Filters NONE Steam SD RUN: e5a58493-1db7-4b40-a7a3-8592e682e107